bitfinex-derivatives/quotes_ETHF0:USTF0_20250220
["timestamp","ask_amount","ask_price","bid_price","bid_amount"]
[1740063084312,3.7927,2744.5,2743.8,3.2078]
[1740063084513,3.2078,2744.0,2743.6,0.72886]
[1740063084818,1.82207,2743.8,2743.1,3.2078]
[1740063085021,0.5487,2743.9,2743.1,3.2078]
[1740063085217,0.72898,2743.3,2743.1,3.9368]
[1740063085413,3.2078,2743.6,2743.1,3.2078]
[1740063085614,3.2078,2743.3,2742.6,3.93692]
[1740063085816,3.2078,2743.3,2743.1,0.00547196]
[1740063085817,1.27768,2743.2,2743.1,0.00547196]
[1740063089017,0.5487,2743.2,2743.1,0.00547196]
[1740063089720,1.27768,2743.2,2743.1,0.00547196]
[1740063091415,4.11668,2743.2,2743.1,1.96e-06]
[1740063091616,10.11668,2743.2,2743.1,1.96e-06]
[1740063091817,10.17495846,2743.2,2743.1,1.96e-06]
[1740063092317,9.98227846,2743.2,2741.1,0.5531]
[1740063092516,1.82326,2742.0,2741.2,0.5912]
[1740063092816,3.2078,2742.1,2741.0,3.2078]
[1740063093018,3.2078,2742.1,2740.8,12.6]
[1740063093019,0.72933,2742.0,2741.4,3.2078]
[1740063093419,0.72933,2742.0,2741.8,0.72935]
[1740063093623,0.72936,2741.8,2741.6,0.72939]
[1740063093816,0.72939,2741.7,2741.5,0.72942]
[1740063094017,0.72942,2741.6,2741.4,3.94272196]
[1740063094613,0.72942,2741.6,2741.4,0.73492196]
[1740063094818,0.72939,2741.7,2741.5,0.72944]
[1740063095022,0.00547196,2742.0,2741.4,0.00547196]
[1740063095223,0.72943,2741.6,2741.4,0.00547196]
[1740063095526,0.72941,2741.6,2741.4,0.73492196]
[1740063096023,0.00547196,2742.0,2741.4,0.00547196]
[1740063096220,0.00547196,2742.0,2741.9,0.72933]
[1740063096621,0.00547196,2742.0,2741.9,3.93713]
[1740063096923,3.93687,2742.9,2742.7,0.72911]
[1740063097126,3.93687,2742.9,2742.6,0.72913]
[1740063097328,0.72906,2743.0,2742.5,2.845]
[1740063097522,0.5623,2743.1,2742.5,2.845]
[1740063097721,0.7291,2742.8,2742.6,0.72913]
[1740063097922,0.7291,2742.8,2742.5,2.845]
[1740063097923,0.56777196,2743.1,2742.5,2.845]
[1740063098124,0.72911,2742.8,2742.6,0.72913]
[1740063098325,0.56777196,2743.1,2742.5,2.845]
[1740063098725,0.56777196,2743.1,2742.5,6.0528]
[1740063098925,0.73450196,2743.1,2742.5,6.0528]
[1740063099126,0.73450196,2743.1,2742.9,0.72905]
[1740063099428,0.00547196,2743.1,2742.5,6.0528]
[1740063099623,0.72907,2742.9,2742.7,0.72909]
[1740063100125,0.72905,2743.0,2742.8,0.72907]
[1740063100327,0.00547196,2743.1,2742.5,6.0528]
[1740063100523,0.00547196,2743.1,2743.0,0.72904]
[1740063100728,0.72904,2743.0,2742.8,0.72907]
[1740063100926,0.72907,2742.9,2742.8,0.00547196]
[1740063101232,0.72906,2742.9,2742.8,0.00547196]
[1740063101732,3.93686,2742.9,2742.8,0.00547196]
[1740063103532,3.2078,2742.9,2742.8,0.00547196]
[1740063103833,3.93686,2742.9,2742.8,0.00547196]
[1740063104323,3.2078,2742.9,2742.8,0.73456196]
[1740063104528,3.93686,2742.9,2742.8,0.00547196]
[1740063105128,3.93686,2742.9,2742.8,0.73456196]
[1740063105433,3.2078,2742.9,2742.8,0.00547196]
[1740063105627,3.93686,2742.9,2742.8,0.00547196]
[1740063106633,3.93686,2742.9,2742.8,0.73456196]
[1740063106933,3.2078,2742.9,2742.8,0.73456196]
[1740063107132,3.93686,2742.9,2742.8,0.73456196]
[1740063107332,3.2078,2742.9,2742.8,0.73456196]
[1740063108730,1.82244,2743.3,2743.2,0.72896]
[1740063108731,0.72899,2743.3,2743.2,0.72896]
[1740063108937,0.5848,2743.7,2742.8,3.21327196]
[1740063109240,0.72877,2744.0,2743.9,0.72878]
[1740063109535,0.72884,2743.8,2743.5,6.0068]
[1740063109734,1.82729196,2744.2,2743.5,6.0068]
[1740063110036,0.00547196,2744.2,2743.5,6.0068]
[1740063110234,0.72878,2744.0,2743.9,0.72878]
[1740063110436,0.72881,2743.9,2743.8,0.72881]
[1740063110728,0.00547196,2744.2,2743.9,0.72878]
[1740063110932,0.72876,2744.1,2744.0,0.72876]
[1740063111133,0.72879,2744.0,2743.9,0.72879]
[1740063111332,0.72875,2744.1,2744.0,0.72876]
[1740063111534,0.00547196,2744.2,2743.5,6.0068]
[1740063111835,0.72883,2743.8,2743.7,0.72883]
[1740063112225,3.21327196,2744.2,2743.5,6.0068]
[1740063112226,0.5603,2744.1,2743.5,6.0068]
[1740063112432,0.72882,2743.8,2743.5,6.0068]
[1740063112632,0.72881,2743.9,2743.8,0.72881]
[1740063112931,0.00547196,2744.2,2744.1,0.72874]
[1740063113531,0.73421196,2744.2,2743.8,3.2078]
[1740063113739,0.00547196,2744.2,2743.8,3.2078]
[1740063114038,0.72878,2744.0,2743.9,0.72878]
[1740063114334,0.72878,2744.0,2743.5,6.0068]
[1740063114335,0.72877,2744.1,2743.5,6.0068]
[1740063114535,0.00547196,2744.2,2744.1,0.72874]
[1740063114726,0.73419196,2744.2,2744.1,0.72874]
[1740063114927,0.72876,2744.1,2744.0,0.72876]
[1740063115332,0.00547196,2744.2,2744.1,0.72874]
[1740063119136,0.72877,2744.0,2743.9,3.2078]
[1740063119533,3.2078,2744.0,2743.3,3.2078]
[1740063119734,0.72892,2743.5,2743.4,0.72892]
[1740063119935,3.2078,2744.0,2743.3,3.2078]
[1740063120538,0.72893,2743.4,2743.3,3.2078]
[1740063120733,1.822,2743.9,2741.7,6.2988]
[1740063120734,5.02997,2743.7,2743.0,3.2078]
[1740063121035,3.2078,2743.7,2743.0,3.2078]
[1740063121234,0.72901,2743.1,2743.0,3.2078]
[1740063121434,0.72906,2742.9,2742.8,0.00547196]
[1740063121934,1.1228,2743.3,2742.8,0.00547196]
[1740063122539,0.72906,2742.9,2742.8,0.00547196]
[1740063122734,3.93686,2742.9,2742.8,0.00547196]
[1740063123339,3.2078,2743.2,2742.8,0.00547196]
[1740063123538,0.72905,2743.0,2742.8,0.00547196]
[1740063123833,3.2078,2743.2,2742.8,0.00547196]
[1740063124038,0.72906,2742.9,2742.8,0.00547196]
[1740063124250,3.93686,2742.9,2742.8,0.00547196]
[1740063124441,1.82273,2742.8,2742.0,3.93709]
[1740063124635,0.72929,2742.1,2741.8,0.72934]
[1740063125032,0.5434,2742.5,2741.8,0.72934]
[1740063125235,1.1286,2742.5,2741.8,0.72934]
[1740063125641,1.1286,2742.5,2741.9,0.00547196]
[1740063125642,0.7293,2742.0,2741.9,0.00547196]
[1740063127736,3.9371,2742.0,2741.9,0.00547196]
[1740063128137,0.72938,2741.7,2741.6,0.1]
[1740063129040,0.72949,2741.3,2741.1,0.72952]
[1740063129244,0.72948,2741.4,2741.2,0.7295]
[1740063129440,0.72948,2741.4,2740.8,23.4228]
[1740063129441,3.2078,2741.7,2740.9,0.00547196]
[1740063129741,0.7295,2741.3,2740.9,0.00547196]
[1740063129937,0.72951,2741.3,2741.1,0.72952]
[1740063130134,0.72955,2741.1,2740.9,0.73505196]
[1740063130337,3.2078,2741.4,2740.9,0.00547196]
[1740063130540,3.2078,2741.4,2740.9,0.73506196]
[1740063130541,0.72956,2741.1,2740.9,0.73506196]
[1740063130743,0.72957,2741.0,2740.9,0.00547196]
[1740063131943,0.72957,2741.0,2740.3,0.72974]
[1740063131944,0.7297,2740.6,2740.3,0.72974]
[1740063132141,3.2078,2740.8,2740.0,15.36]
[1740063132339,3.2078,2740.8,2740.3,0.72974]
[1740063132649,0.72975,2740.3,2740.0,0.72981]
[1740063132953,7.78987,2740.8,2740.0,0.72981]
[1740063133136,7.78987,2740.8,2739.9,3.21327196]
[1740063133137,0.72982,2740.1,2739.9,3.21327196]
[1740063133339,3.93763,2740.0,2739.9,0.00547196]
[1740063133746,9.2078,2740.0,2738.7,3.2078]
[1740063133945,3.2078,2739.6,2738.4,3.2078]
[1740063134255,2.795,2739.5,2738.4,3.2078]
[1740063134445,0.73011,2739.0,2738.5,0.73023]
[1740063134643,0.7302,2738.7,2738.4,3.2078]
[1740063134844,0.73021,2738.6,2738.4,3.2078]
[1740063135151,0.00547196,2738.8,2738.4,3.19138412]
[1740063135744,3.2078,2738.5,2737.3,3.2078]
[1740063135947,3.2078,2738.1,2737.0,3.2078]
[1740063136246,3.2078,2737.8,2737.0,3.2078]
[1740063136439,0.73055,2737.4,2737.0,3.2078]
[1740063136642,2.96,2737.7,2737.3,0.73054]
[1740063136841,0.5893,2737.9,2737.4,3.2078]
[1740063137047,3.7971,2738.7,2737.7,3.2078]
[1740063137250,0.00547196,2738.8,2738.3,3.2078]
[1740063137457,0.00547196,2738.8,2738.0,3.2078]
[1740063137654,3.2078,2738.7,2738.0,3.2078]
[1740063137851,6.0908,2738.7,2738.0,3.2078]
[1740063138057,3.2078,2738.2,2737.1,3.2078]
[1740063138362,5.848,2738.2,2737.4,3.2078]
[1740063138756,0.00547196,2738.8,2738.1,3.93813]
[1740063139056,0.00547196,2738.8,2738.3,0.73026]
[1740063139268,0.00547196,2738.8,2738.1,3.2078]
[1740063139269,0.73563196,2738.8,2738.1,3.2078]
[1740063139458,3.938,2738.7,2738.1,3.2078]
[1740063139654,0.0185044,2738.4,2738.1,3.2078]
[1740063140166,0.0185044,2738.4,2738.3,0.73029]
[1740063140454,0.00547196,2738.8,2738.1,12.1828]
[1740063140658,0.72994,2739.7,2739.0,0.73007]
[1740063140860,3.4875,2740.1,2739.2,0.73003]
[1740063140861,3.2078,2739.9,2739.2,0.73003]
[1740063141062,0.5865,2740.1,2739.0,3.2078]
[1740063141262,3.93757,2740.3,2739.3,3.2078]
[1740063141458,0.72978,2740.2,2739.6,0.72993]
[1740063141660,3.2078,2740.0,2739.4,2.91]
[1740063141954,3.93771,2739.7,2739.6,0.00547196]
[1740063142160,9.2078,2739.7,2738.7,3.2078]
[1740063142360,0.73004,2739.3,2738.6,0.73019]
[1740063142560,6.1258,2739.4,2738.4,3.2078]
[1740063142756,0.73012,2739.0,2738.4,3.93804]
[1740063142963,6.1258,2739.4,2738.4,3.2078]
[1740063143156,0.73019,2738.7,2738.4,3.2078]
[1740063143361,0.73031,2738.3,2737.8,3.2078]
[1740063143563,3.2078,2738.5,2737.8,3.2078]
[1740063143763,0.00547196,2738.3,2737.5,0.73048]
[1740063144064,3.2078,2738.2,2737.4,3.2078]
[1740063144463,3.49755837,2738.2,2737.4,3.2078]
[1740063144659,2.92247196,2738.3,2737.4,3.2078]
[1740063144963,0.73033,2738.2,2737.4,3.2078]
[1740063145157,0.00547196,2738.3,2737.7,3.2078]
[1740063145364,0.00547196,2738.3,2737.8,3.2078]
[1740063145663,0.00547196,2738.3,2738.2,0.73031]
[1740063145964,0.00547196,2738.3,2738.2,6.86411]
[1740063146357,0.00547196,2738.3,2738.2,19.46411]
[1740063146665,0.73009,2739.1,2738.2,18.7338]
[1740063146858,3.2078,2739.2,2738.5,3.2078]
[1740063147063,2.926,2739.4,2738.8,3.2078]
[1740063147364,6.1338,2739.4,2738.8,3.2078]
[1740063147561,0.572,2739.6,2738.8,3.2078]
[1740063147756,3.21327196,2739.4,2738.8,3.2078]
[1740063147961,0.73002,2739.3,2738.9,0.73011]
[1740063148160,0.73002,2739.3,2738.7,2.923]
[1740063148161,0.73012,2739.0,2738.7,2.923]
[1740063148461,3.2078,2739.0,2738.5,3.2078]
[1740063148864,0.73006,2739.2,2738.7,0.73016]
[1740063149068,2.923,2739.3,2738.5,3.2078]
[1740063149364,0.73017,2738.8,2738.5,3.2078]
[1740063149561,6.1308,2739.3,2738.2,12.6]
[1740063149562,3.2078,2739.0,2738.2,3.2078]
[1740063149766,0.73025,2738.5,2738.2,3.2078]
[1740063149967,2.923,2738.8,2738.2,3.2078]
[1740063150166,0.73027,2738.4,2738.2,3.2078]
[1740063150470,2.923,2738.8,2738.2,3.2078]
[1740063150662,0.73028,2738.4,2738.2,3.2078]
[1740063150961,3.2078,2738.4,2738.0,0.00547196]
[1740063151169,0.73034,2738.1,2738.0,0.00547196]
[1740063152168,2.96,2738.2,2738.0,0.00547196]
[1740063152367,0.5609,2738.5,2738.0,0.00547196]
[1740063153058,3.7687,2738.5,2738.0,0.00547196]
[1740063153257,0.7303,2738.3,2738.0,0.73584196]
[1740063153457,3.7687,2738.5,2738.0,0.00547196]
[1740063153860,0.73034,2738.1,2738.0,0.00547196]
[1740063154062,3.7687,2738.5,2738.0,0.00547196]
[1740063154063,6.6947,2738.5,2738.0,0.00547196]
[1740063154258,2.96,2738.7,2738.0,3.21327196]
[1740063154459,2.96,2738.7,2738.3,3.2078]
[1740063154664,0.7302,2738.7,2738.4,0.73025]
[1740063154860,3.2078,2739.1,2738.3,3.2078]
[1740063155267,3.2078,2739.1,2738.6,3.2078]
[1740063155462,3.93789,2739.1,2738.9,0.73012]
[1740063155666,3.2078,2739.1,2738.9,0.73011]
[1740063155867,0.73547196,2739.4,2739.2,0.73004]
[1740063156066,0.00547196,2739.4,2739.2,0.73004]
[1740063156267,0.00547196,2739.4,2738.9,3.2078]
[1740063156472,0.73014,2738.9,2738.7,0.73018]
[1740063156773,0.73017,2738.8,2738.5,3.93802]
[1740063157267,10.91986,2739.3,2738.0,0.00547196]
[1740063157268,3.2078,2738.6,2738.0,0.00547196]
[1740063157959,3.2078,2738.6,2738.0,3.21327196]
[1740063157960,0.73022,2738.6,2738.0,3.21327196]
[1740063158269,3.2078,2739.2,2738.3,3.2078]
[1740063158472,3.2078,2739.5,2738.6,3.2078]
[1740063158766,0.73004,2739.3,2739.0,0.73008]
[1740063158965,3.2078,2739.5,2738.6,3.2078]
[1740063159568,3.2078,2739.2,2738.6,3.2078]
[1740063159970,0.73016,2738.8,2738.6,3.938]
[1740063160475,3.2078,2739.2,2738.6,3.2078]
[1740063160670,0.73018,2738.7,2738.6,3.2078]
[1740063161271,0.73018,2738.7,2738.0,0.00547196]
[1740063161272,6.1378,2738.9,2738.0,1.96e-06]
[1740063161570,3.2078,2738.3,2736.7,3.2078]
[1740063161873,3.2078,2737.3,2736.7,3.2078]
[1740063162065,3.2078,2737.3,2736.4,3.2078]
[1740063162266,0.73071,2736.8,2736.4,3.93859]
[1740063162465,0.72925868,2736.5,2736.1,0.73086]
[1740063162672,3.93853,2736.7,2736.2,0.73083]
[1740063162870,3.2078,2736.7,2736.1,3.2078]
[1740063163074,2.96547196,2736.9,2736.1,3.2078]
[1740063163274,0.73077,2736.5,2735.8,3.2078]
[1740063163471,3.2078,2736.7,2735.8,3.2078]
[1740063163770,3.93853,2736.7,2735.8,3.2078]
[1740063163972,0.54497196,2736.9,2736.1,3.2078]
[1740063164173,0.73076,2736.6,2736.1,3.2078]
[1740063164467,0.73086,2736.2,2735.8,3.2078]
[1740063164774,6.1678,2736.2,2735.2,3.2078]
[1740063164978,6.1678,2736.2,2734.9,3.2078]
[1740063165169,3.2078,2735.9,2734.9,3.2078]
[1740063165467,3.2078,2735.6,2734.9,3.2078]
[1740063165671,2.36987,2736.5,2735.6,0.73101]
[1740063165672,2.96,2735.7,2735.6,0.73101]
[1740063165868,2.96,2735.7,2735.5,3.2078]
[1740063165869,2.96,2736.4,2735.5,6.1968]
[1740063166067,2.96,2736.4,2735.2,1.82775]
[1740063166068,3.2078,2736.5,2735.8,3.2078]
[1740063166270,0.00548216,2736.2,2735.8,3.2078]
[1740063166468,0.00548216,2736.2,2736.1,0.73087]
[1740063167062,0.00548216,2736.2,2736.1,3.93867]
[1740063167472,3.2078,2737.0,2736.1,6.1928]
[1740063167668,0.5478,2737.7,2736.7,3.2078]
[1740063167867,0.5478,2737.7,2737.1,0.73058]
[1740063167868,0.73046,2737.7,2737.1,0.73058]
[1740063168063,0.73048,2737.6,2737.1,0.73058]
[1740063168271,3.2078,2737.9,2737.0,6.1948]
[1740063168673,0.73051,2737.5,2737.2,0.00548216]
[1740063169172,3.2078,2737.6,2737.2,0.00548216]
[1740063169373,0.73055,2737.3,2737.2,0.00548216]
[1740063169574,3.2078,2737.6,2737.2,0.00548216]
[1740063170370,0.00548216,2737.7,2737.3,0.73054]
[1740063170567,0.73594216,2737.7,2737.2,0.73604216]
[1740063170763,0.00548216,2737.7,2737.2,0.00548216]
[1740063170969,0.00548216,2737.7,2735.7,3.2078]
[1740063170970,3.2078,2737.3,2735.7,3.2078]
[1740063171174,2.988,2737.6,2736.3,0.73081]
[1740063171175,0.73068,2736.9,2736.3,0.73081]
[1740063171372,3.2078,2737.0,2735.8,3.2078]
[1740063171876,3.2078,2737.0,2736.1,3.2078]
[1740063172078,3.2078,2737.0,2736.2,3.023]
[1740063172275,3.2078,2737.0,2736.4,3.2078]
[1740063172869,3.2078,2737.0,2736.6,0.73072]
[1740063173073,3.93845,2737.0,2736.1,3.2078]
[1740063173269,3.93845,2737.0,2736.5,0.73075]
[1740063173270,3.2078,2737.0,2736.5,0.73075]
[1740063173472,3.2078,2737.0,2736.1,3.2078]
[1740063173672,0.73066,2736.9,2736.5,0.73075]
[1740063173871,6.7938,2737.6,2736.9,0.73065]
[1740063174071,0.7306,2737.2,2736.8,0.73068]
[1740063174271,3.2078,2737.3,2736.7,3.2078]
[1740063174474,3.2078,2737.3,2736.6,3.016]
[1740063174475,0.00548216,2737.7,2737.1,3.2078]
[1740063174675,0.00548216,2737.7,2737.6,0.73047]
[1740063175177,3.2078,2738.5,2738.2,0.73031]
[1740063175372,3.2078,2738.8,2738.1,6.2238]
[1740063175578,3.2078,2738.8,2737.4,0.00548216]
[1740063175579,3.2078,2739.3,2738.7,0.73016]
[1740063175878,3.2078,2739.3,2738.4,3.2078]
[1740063176177,3.2078,2739.3,2738.7,3.2078]
[1740063176376,3.2078,2739.3,2738.8,3.015]
[1740063176377,0.00548216,2739.1,2738.8,3.015]
[1740063177175,3.2078,2739.0,2738.6,0.00548216]
[1740063177380,3.2078,2738.7,2738.6,0.00548216]
[1740063177579,3.93798,2738.7,2738.6,0.00548216]
[1740063178278,9.93798,2738.7,2738.6,0.00548216]
[1740063178481,9.93798,2738.7,2737.5,3.016]
[1740063178482,9.2078,2738.7,2737.5,3.016]
[1740063178683,1.82533,2738.9,2737.7,0.73043]
[1740063178684,3.2078,2738.1,2737.7,0.73043]
[1740063179077,0.73029,2738.3,2737.7,0.73043]
[1740063179273,3.2078,2738.4,2737.5,6.2238]
[1740063179479,0.73033,2738.2,2737.7,0.73044]
[1740063179969,0.73032,2738.2,2737.8,0.73042]
[1740063180183,3.93814,2738.1,2737.5,3.2078]
[1740063180382,3.2078,2738.1,2737.5,3.2078]
[1740063180778,3.2078,2738.1,2736.9,0.5756]
[1740063180980,3.2078,2737.8,2736.9,0.5756]
[1740063181181,6.1678,2738.1,2737.1,3.2078]
[1740063181377,3.2078,2738.7,2737.7,3.2078]
[1740063181580,0.00548216,2737.9,2737.8,0.73042]
[1740063181884,0.00548216,2737.9,2737.7,3.011]
[1740063182082,0.00548216,2737.9,2737.3,6.1828]
[1740063182083,0.73044,2737.8,2737.4,0.73052]
[1740063182378,0.73044,2737.8,2737.3,3.70554]
[1740063182379,3.2078,2737.8,2737.3,3.70554]
[1740063182578,3.2078,2737.8,2737.3,2.975]
[1740063182784,3.2078,2737.8,2737.5,0.73048]
[1740063183091,0.73045,2737.7,2737.3,3.70554]
[1740063183279,3.2078,2737.8,2737.3,2.975]
[1740063183474,3.2078,2737.8,2737.7,0.73045]
[1740063183683,0.00548216,2737.9,2737.8,0.73042]
[1740063183983,0.00548216,2737.9,2737.3,4.80136]
[1740063183984,0.00548216,2737.9,2737.3,6.1828]
[1740063184185,0.00548216,2737.9,2737.8,0.73042]
[1740063185289,3.2078,2739.5,2737.9,1.82595]
[1740063185495,3.2078,2739.5,2738.8,3.2078]
[1740063185796,3.2078,2739.1,2738.5,3.2078]
[1740063185996,3.2078,2739.5,2738.5,5.03335]
[1740063186196,3.2078,2739.5,2738.8,3.2078]
[1740063186396,3.2078,2739.8,2739.1,3.2078]
[1740063186602,3.9377,2739.8,2739.5,0.72995]
[1740063186898,3.2078,2739.8,2738.7,3.21328216]
[1740063187099,5.03253,2739.8,2739.0,0.7301]
[1740063187392,0.00548216,2739.9,2738.7,0.00548216]
[1740063187393,3.2078,2739.2,2738.7,0.00548216]
[1740063187592,0.73015,2738.8,2738.7,0.00548216]
[1740063187792,3.2078,2738.9,2738.0,3.143]
[1740063187994,3.2078,2738.4,2738.0,3.143]
[1740063188194,3.2078,2738.4,2737.2,1.82645]
[1740063188195,3.2078,2738.4,2737.6,3.143]
[1740063188400,0.73036,2738.1,2737.5,3.2078]
[1740063188701,3.2078,2738.4,2737.5,3.2078]
[1740063189096,3.2078,2738.4,2737.2,0.5464]
[1740063189097,3.2078,2738.0,2737.2,0.5464]
[1740063189304,3.2078,2738.0,2737.1,3.2078]
[1740063190107,0.73039,2737.9,2737.1,3.2078]
[1740063190401,3.2078,2738.0,2737.2,3.14]
[1740063190592,0.73046,2737.7,2737.2,3.14]
[1740063190788,3.2078,2738.0,2737.1,3.2078]
[1740063190994,0.73054,2737.4,2737.1,0.7306]
[1740063191189,0.73054,2737.4,2736.7,3.139]
[1740063191190,3.2078,2737.5,2736.7,3.139]
[1740063191390,3.2078,2737.1,2736.2,3.2078]
[1740063191603,3.2078,2736.8,2736.3,0.73081]
[1740063191796,3.2078,2736.8,2736.5,0.73075]
[1740063191997,3.21328216,2736.8,2735.9,21.9078]
[1740063192199,0.73072,2736.7,2736.3,0.73079]
[1740063192501,3.21328216,2736.8,2735.9,21.9078]
[1740063192696,0.00548216,2736.8,2735.9,21.9078]
[1740063193198,0.00548216,2736.8,2736.2,3.2078]
[1740063193404,0.00548216,2736.8,2736.5,0.73076]
[1740063193702,0.00548216,2736.8,2736.7,0.73071]
[1740063195105,0.73618216,2736.8,2736.5,3.134]
[1740063195500,0.00548216,2736.8,2736.1,3.757]
[1740063195705,3.2078,2736.2,2735.5,3.2078]
[1740063195908,0.73091,2736.0,2735.7,0.73098]
[1740063196405,0.73092,2736.0,2735.6,0.73099]
[1740063196596,3.2078,2736.2,2735.5,3.2078]
[1740063196794,3.2078,2735.9,2735.1,3.2078]
[1740063197005,3.2078,2735.9,2735.5,0.73102]
[1740063197207,3.2078,2735.9,2735.2,18.7]
[1740063197396,0.73104,2735.5,2735.2,0.7311]
[1740063197601,3.2078,2735.9,2735.1,3.2078]
[1740063198106,3.2078,2735.9,2735.8,0.73095]
[1740063198302,3.7551,2736.4,2735.4,3.2078]
[1740063198604,3.7551,2736.4,2736.3,0.73082]
[1740063198605,3.2078,2736.4,2736.3,0.73082]
[1740063198800,3.2078,2736.4,2735.8,3.143]
[1740063199204,2.96,2736.7,2735.8,4.97039]
[1740063199408,3.21328216,2736.8,2735.8,3.143]
[1740063199797,3.21328216,2736.8,2735.8,6.3508]
[1740063200101,0.73075,2736.6,2736.3,0.7308]
[1740063200302,3.21328216,2736.8,2735.8,6.3508]
[1740063200502,0.73084,2736.3,2736.0,0.73088]
[1740063200799,3.2078,2736.5,2735.8,3.2078]
[1740063201005,0.73084,2736.3,2736.0,0.73089]
[1740063201194,3.2078,2736.5,2735.8,21.9078]
[1740063201397,3.21328216,2736.8,2735.8,23.73519]
[1740063201803,3.2078,2736.5,2735.9,0.73092]
[1740063202000,3.2078,2736.5,2735.8,3.2078]
[1740063202200,0.73086,2736.2,2735.9,0.73091]
[1740063202408,0.73089,2736.1,2735.8,0.73094]
[1740063202594,0.73086,2736.2,2735.4,3.763]
[1740063202801,0.73085,2736.2,2735.4,6.895]
[1740063203003,0.73089,2736.1,2735.8,0.73093]
[1740063203205,2.96,2736.3,2735.4,3.6872]
[1740063203404,2.96,2736.3,2735.7,0.73097]
[1740063203604,3.2078,2736.1,2735.4,3.6872]
[1740063204406,3.2078,2736.1,2735.4,3.132]
[1740063204610,6.1678,2736.1,2735.3,3.2078]
[1740063204907,3.2078,2735.8,2735.3,3.2078]
[1740063205114,0.73092,2736.0,2735.8,0.73095]
[1740063205413,6.1678,2736.1,2735.3,3.2078]
[1740063205906,0.73106,2735.4,2735.3,3.2078]
[1740063206099,0.73105,2735.5,2735.3,0.73108]
[1740063206299,3.2078,2735.4,2734.7,0.5456]
[1740063206506,3.2078,2735.4,2734.7,3.7534]
[1740063206706,0.01264889,2735.1,2734.6,3.136]
[1740063206912,0.73117,2735.0,2734.8,0.73121]
[1740063207105,0.00548216,2735.3,2734.3,3.2078]
[1740063207106,0.02529347,2734.9,2734.3,3.2078]
[1740063207304,0.02529347,2734.9,2734.0,5.03637]
[1740063207501,0.02529347,2734.9,2734.0,3.7675]
[1740063207706,0.02529347,2734.9,2734.0,5.5961]
[1740063207907,0.0379381,2734.5,2734.4,0.73133]
[1740063208409,0.73131,2734.5,2734.3,0.73134]
[1740063208600,0.05058283,2734.5,2734.1,0.7314]
[1740063208799,0.05058283,2734.5,2734.0,3.2078]
[1740063209010,0.0632276,2734.3,2734.2,0.73138]
[1740063210211,3.2078,2735.0,2734.2,0.73138]
[1740063210406,3.2078,2734.7,2734.1,0.5335]
[1740063210605,3.2078,2734.7,2734.0,3.2078]
[1740063211005,3.2078,2734.7,2733.6,5.55871]
[1740063211006,3.2078,2734.7,2733.7,3.2078]
[1740063211214,6.1678,2734.7,2733.8,1.82873]
[1740063211407,9.3108,2734.7,2733.7,3.2078]
[1740063211608,0.73137,2734.3,2734.1,0.73139]
[1740063211808,3.2078,2734.4,2733.7,3.2078]
[1740063212008,3.2078,2734.4,2734.3,0.73136]
[1740063212215,6.103,2734.7,2733.7,5.03659]
[1740063212515,0.01267949,2734.4,2734.3,0.73136]
[1740063212907,0.02535147,2734.4,2734.3,0.73136]
[1740063213408,0.03802355,2734.4,2734.3,0.73136]
[1740063214010,0.05069572,2734.4,2734.3,19.43136]
[1740063214610,0.05069572,2734.4,2734.3,0.73136]
[1740063214804,0.05069572,2734.4,2733.8,3.7816]
[1740063215005,0.73145,2734.0,2733.8,3.93927]
[1740063215228,0.78211572,2734.1,2733.9,0.73144]
[1740063215510,0.73144,2734.0,2733.8,3.93928]
[1740063215814,0.73144,2734.0,2731.8,3.35701073]
[1740063215815,0.73153,2733.7,2733.5,0.74740595]
[1740063216018,3.25849572,2733.6,2733.5,0.01584595]
[1740063216306,3.25849572,2733.6,2733.5,0.01036379]
[1740063216701,3.99003572,2733.6,2733.5,0.01036379]
[1740063217415,9.99003572,2733.6,2733.5,0.01036379]
[1740063217713,12.95003572,2733.6,2733.5,3.79e-06]
[1740063218010,12.95003572,2733.6,2731.7,2.975]
[1740063218011,9.25849572,2733.6,2731.9,18.7]
[1740063218313,3.93955,2732.9,2732.4,0.73185]
[1740063218513,3.2078,2732.9,2732.1,3.2078]
[1740063218703,0.73177,2732.8,2732.3,0.73188]
[1740063218908,3.2078,2732.9,2732.1,3.2078]
[1740063219104,0.05069572,2732.5,2732.4,0.73186]
[1740063219408,0.73188,2732.4,2731.7,3.2078]
[1740063219608,3.25849572,2732.5,2731.7,3.2078]
[1740063219803,0.73188,2732.4,2732.0,0.73196]
[1740063220010,0.00548216,2732.3,2732.2,0.73192]
[1740063220314,0.00548216,2732.3,2732.2,0.68122428]
[1740063221009,2.16e-06,2732.3,2732.2,19.38122428]
[1740063221210,2.16e-06,2732.3,2732.0,3.2078]
[1740063221919,0.73193,2732.2,2732.0,3.2078]
[1740063222218,0.73193,2732.2,2731.0,1.83057]
[1740063222219,3.20780216,2732.3,2730.2,3.2078]
[1740063222408,3.2078,2730.8,2730.2,3.2078]
[1740063222608,3.2078,2731.3,2730.2,3.2078]
[1740063222812,3.2078,2731.3,2730.3,18.7]
[1740063223115,3.2078,2731.0,2730.2,3.2078]
[1740063223308,3.2078,2730.7,2730.0,10.0]
[1740063223709,3.2078,2730.5,2730.0,10.0]
[1740063224219,0.00549229,2730.9,2730.3,3.2078]
[1740063224410,0.00549229,2730.9,2730.8,0.73229]
[1740063224805,0.00549229,2730.9,2730.5,0.547]
[1740063225017,0.00549229,2730.9,2730.8,0.73229]
[1740063225211,0.00549229,2730.9,2730.5,3.863]
[1740063225417,0.00549229,2730.9,2730.8,0.73229]